bitfinex-derivatives/quotes_SOLF0:USTF0_20260110
["timestamp","ask_amount","ask_price","bid_price","bid_amount"]
[1768088271446,5.48529737,135.85,135.81,7.33440844]
[1768088271647,1.27430983,135.86,135.81,7.33440844]
[1768088271844,5.48563072,135.85,135.81,7.33440844]
[1768088272048,1.27430983,135.86,135.81,7.33440844]
[1768088272248,5.48563072,135.85,135.81,7.33440844]
[1768088272449,1.27430983,135.86,135.81,7.33440844]
[1768088272653,5.48600246,135.85,135.81,7.33440844]
[1768088272856,1.27430983,135.86,135.81,7.33440844]
[1768088273155,5.48600246,135.85,135.81,7.33440844]
[1768088273356,1.27430983,135.86,135.81,7.33440844]
[1768088273563,5.48642918,135.85,135.81,7.33440844]
[1768088273856,1.27430983,135.86,135.81,7.33440844]
[1768088274055,5.48642918,135.85,135.81,7.33440844]
[1768088274254,1.27430983,135.86,135.81,7.33440844]
[1768088274454,5.48680265,135.85,135.81,7.33440844]
[1768088274655,1.27430983,135.86,135.81,7.33440844]
[1768088274855,5.48680265,135.85,135.81,7.33440844]
[1768088275056,1.27430983,135.86,135.81,7.33440844]
[1768088275256,5.48680265,135.85,135.81,7.33440844]
[1768088275558,1.27430983,135.86,135.81,7.33440844]
[1768088275761,5.48726843,135.85,135.81,7.33440844]
[1768088276060,1.27430983,135.86,135.81,7.33440844]
[1768088276357,5.48726843,135.85,135.81,7.33440844]
[1768088276554,1.27430983,135.86,135.81,7.33440844]
[1768088276758,5.48725677,135.85,135.81,7.33440844]
[1768088276960,1.27430983,135.86,135.81,7.33440844]
[1768088277159,5.48725677,135.85,135.81,7.33440844]
[1768088277360,1.27430983,135.86,135.81,7.33440844]
[1768088277562,5.48724982,135.85,135.81,7.33440844]
[1768088277755,1.27430983,135.86,135.81,7.33440844]
[1768088277955,5.48724982,135.85,135.81,7.33440844]
[1768088278156,1.27430983,135.86,135.81,7.33440844]
[1768088278364,5.48724982,135.85,135.81,7.33440844]
[1768088278565,1.27430983,135.86,135.81,7.33440844]
[1768088278861,5.48724834,135.85,135.81,7.33440844]
[1768088279162,1.27430983,135.86,135.81,7.33440844]
[1768088279360,5.48724834,135.85,135.81,7.33440844]
[1768088279562,1.27430983,135.86,135.81,7.33440844]
[1768088279866,5.48725234,135.85,135.81,7.33440844]
[1768088280057,1.27430983,135.86,135.81,7.33440844]
[1768088280258,5.48725234,135.85,135.81,7.33440844]
[1768088280464,1.27430983,135.86,135.81,7.33440844]
[1768088280651,5.48725785,135.85,135.81,7.33440844]
[1768088280850,1.27430983,135.86,135.81,7.33440844]
[1768088281052,5.48725785,135.85,135.81,7.33440844]
[1768088281266,1.27430983,135.86,135.81,7.33440844]
[1768088281560,5.48727071,135.85,135.81,0.69900844]
[1768088281759,7.90730983,135.86,135.81,0.69900844]
[1768088281961,5.4872692,135.85,135.81,0.69900844]
[1768088282161,7.90730983,135.86,135.81,0.69900844]
[1768088282361,5.4872692,135.85,135.81,0.69900844]
[1768088282561,7.90730983,135.86,135.81,0.69900844]
[1768088282765,5.48728824,135.85,135.81,0.69900844]
[1768088282964,7.90730983,135.86,135.81,0.69900844]
[1768088283165,5.48728824,135.85,135.81,0.69900844]
[1768088283357,7.90730983,135.86,135.81,0.69900844]
[1768088283558,5.46986205,135.85,135.81,7.33440844]
[1768088283760,7.90730983,135.86,135.81,7.33440844]
[1768088284067,5.46986205,135.85,135.81,7.33440844]
[1768088284264,7.90730983,135.86,135.81,7.33440844]
[1768088284459,5.46988443,135.85,135.8,6.68765312]
[1768088284666,7.90730983,135.86,135.8,6.68765312]
[1768088284863,5.46988744,135.85,135.8,6.68765312]
[1768088285064,7.90730983,135.86,135.8,6.68765312]
[1768088285264,5.46988744,135.85,135.8,7.17963609]
[1768088285465,7.90730983,135.86,135.81,6.6354]
[1768088285466,1.27430983,135.86,135.81,6.6354]
[1768088285657,5.4699217,135.85,135.81,6.6354]
[1768088285860,1.27430983,135.86,135.81,6.6354]
[1768088286059,5.46992019,135.85,135.81,6.6354]
[1768088286260,1.27430983,135.86,135.81,6.6354]
[1768088286469,5.46995951,135.85,135.81,6.6354]
[1768088286768,1.27430983,135.86,135.81,6.6354]
[1768088286964,5.46995951,135.85,135.81,7.12100636]
[1768088287264,1.27430983,135.86,135.81,7.12100636]
[1768088287464,5.46996286,135.85,135.81,7.12100636]
[1768088287661,1.27430983,135.86,135.81,7.12100636]
[1768088287865,5.46999213,135.85,135.81,7.12100636]
[1768088288067,1.27430983,135.86,135.81,7.12100636]
[1768088288364,5.46999213,135.85,135.81,7.12100636]
[1768088288561,1.27430983,135.86,135.81,7.12100636]
[1768088288760,5.47003773,135.85,135.81,7.12100636]
[1768088288960,1.27430983,135.86,135.81,7.12100636]
[1768088289171,5.47003773,135.85,135.81,7.12100636]
[1768088289370,1.27430983,135.86,135.81,7.12100636]
[1768088289577,5.47009076,135.85,135.81,7.12100636]
[1768088289766,1.27430983,135.86,135.81,7.12100636]
[1768088289968,5.47008775,135.85,135.81,7.12100636]
[1768088290269,1.27430983,135.86,135.81,7.12100636]
[1768088290462,5.47014536,135.85,135.81,7.12100636]
[1768088290664,1.27430983,135.86,135.81,7.12100636]
[1768088290864,5.47014536,135.85,135.81,7.12100636]
[1768088291064,1.27430983,135.86,135.81,7.12100636]
[1768088291365,5.47014536,135.85,135.81,7.12100636]
[1768088291666,1.27430983,135.86,135.81,7.12100636]
[1768088291865,5.47021496,135.85,135.81,7.12100636]
[1768088292063,1.27430983,135.86,135.81,7.12100636]
[1768088292260,5.47021496,135.85,135.81,7.12100636]
[1768088292563,1.27430983,135.86,135.81,7.12100636]
[1768088292759,5.4702945,135.85,135.81,7.12100636]
[1768088292972,1.27430983,135.86,135.81,7.12100636]
[1768088293175,5.45261053,135.85,135.81,7.12100636]
[1768088293368,1.27430983,135.86,135.81,7.12100636]
[1768088293668,5.39845406,135.85,135.81,7.12100636]
[1768088293867,1.27430983,135.86,135.81,7.12100636]
[1768088294066,5.39845406,135.85,135.81,7.12100636]
[1768088294268,1.27430983,135.86,135.81,7.12100636]
[1768088294468,5.39856197,135.85,135.81,7.12100636]
[1768088294671,1.27430983,135.86,135.81,7.12100636]
[1768088294877,5.39856197,135.85,135.81,7.12100636]
[1768088295068,1.27430983,135.86,135.81,7.12100636]
[1768088295267,5.39856197,135.85,135.81,7.12100636]
[1768088295469,1.27430983,135.86,135.81,7.12100636]
[1768088295669,5.39868073,135.85,135.81,7.12100636]
[1768088295870,1.27430983,135.86,135.81,7.12100636]
[1768088296076,5.39868073,135.85,135.81,7.12100636]
[1768088296376,1.27430983,135.86,135.81,7.12100636]
[1768088296572,5.3988171,135.85,135.81,7.12100636]
[1768088296775,1.27430983,135.86,135.81,7.12100636]
[1768088296972,5.3988171,135.85,135.81,7.12100636]
[1768088297177,1.27430983,135.86,135.81,7.12100636]
[1768088297377,5.39883242,135.85,135.81,7.12100636]
[1768088297572,1.27430983,135.86,135.81,7.12100636]
[1768088297772,5.39896744,135.85,135.81,7.12100636]
[1768088297978,1.27430983,135.86,135.81,7.12100636]
[1768088298171,5.39896744,135.85,135.81,7.12100636]
[1768088298374,1.27430983,135.86,135.81,7.12100636]
[1768088298672,5.3991458,135.85,135.81,7.12100636]
[1768088298871,1.27430983,135.86,135.81,7.12100636]
[1768088299074,5.3991458,135.85,135.81,7.12100636]
[1768088299276,1.27430983,135.86,135.81,7.12100636]
[1768088299573,5.39936615,135.85,135.81,7.12100636]
[1768088299774,1.27430983,135.86,135.81,7.12100636]
[1768088299974,5.39936619,135.85,135.81,7.12100636]
[1768088300181,1.27430983,135.86,135.81,7.12100636]
[1768088300376,5.39937728,135.85,135.81,7.12100636]
[1768088300576,1.27430983,135.86,135.81,7.12100636]
[1768088300776,5.39966379,135.85,135.81,7.12100636]
[1768088300982,1.27430983,135.86,135.81,7.12100636]
[1768088301181,5.39966379,135.85,135.81,7.12100636]
[1768088301381,1.27430983,135.86,135.81,7.12100636]
[1768088301572,5.40030035,135.85,135.81,7.12100636]
[1768088301774,1.27430983,135.86,135.81,7.12100636]
[1768088301975,5.40030035,135.85,135.81,7.12100636]
[1768088302279,7.75288387,135.88,135.83,0.39288818]
[1768088302474,5.3999002,135.87,135.83,0.39288818]
[1768088302677,1.12078387,135.9,135.83,0.39288818]
[1768088302880,5.39931435,135.89,135.83,0.39288818]
[1768088303077,5.39931435,135.88,135.84,0.44950453]
[1768088303282,5.39931435,135.87,135.84,0.44950453]
[1768088303475,1.12078387,135.9,135.84,0.44950453]
[1768088303673,5.37908335,135.89,135.84,7.08340453]
[1768088303977,5.37908335,135.88,135.84,7.08340453]
[1768088304178,5.37908335,135.87,135.84,0.44950453]
[1768088304485,6.6316,135.89,135.84,0.44950453]
[1768088304783,5.37782861,135.88,135.84,0.44950453]
[1768088304974,5.37782861,135.87,135.84,0.44950453]
[1768088305175,6.6316,135.89,135.84,0.44950453]
[1768088305376,5.37695864,135.88,135.84,0.44950453]
[1768088305576,5.37695864,135.87,135.84,0.44950453]
[1768088305788,6.6316,135.89,135.84,0.44950453]
[1768088305989,5.37690205,135.88,135.84,0.44950453]
[1768088306186,5.37690205,135.87,135.84,0.44950453]
[1768088306386,6.6316,135.89,135.84,0.44950453]
[1768088306588,5.37615204,135.88,135.84,0.44950453]
[1768088306884,5.37615204,135.87,135.84,0.44950453]
[1768088307086,6.6316,135.89,135.84,0.44950453]
[1768088307285,5.37615204,135.88,135.84,0.44950453]
[1768088307486,5.37615204,135.87,135.84,0.44950453]
[1768088307679,6.6316,135.89,135.84,0.44950453]
[1768088307984,5.37551924,135.88,135.84,0.44950453]
[1768088308182,5.37551924,135.87,135.84,0.44950453]
[1768088308389,7.75238387,135.89,135.84,0.44950453]
[1768088308588,5.37497334,135.88,135.84,0.44950453]
[1768088308788,7.75238387,135.89,135.84,0.44950453]
[1768088308987,5.37497334,135.88,135.84,0.44950453]
[1768088309183,7.75238387,135.89,135.84,0.44950453]
[1768088309390,5.37456748,135.88,135.84,0.44950453]
[1768088309691,7.75238387,135.89,135.84,0.44950453]
[1768088309889,5.37449572,135.88,135.84,0.44950453]
[1768088310079,7.75238387,135.89,135.84,0.44950453]
[1768088310284,5.37449572,135.88,135.84,0.44950453]
[1768088310483,7.75238387,135.89,135.84,0.44950453]
[1768088310683,5.37407439,135.88,135.84,0.44950453]
[1768088310984,7.75238387,135.89,135.84,0.44950453]
[1768088311183,5.37407439,135.88,135.84,0.44950453]
[1768088311385,7.75238387,135.89,135.84,0.44950453]
[1768088311585,5.37370109,135.88,135.84,0.44950453]
[1768088311784,7.75238387,135.89,135.84,0.44950453]
[1768088311992,5.37370109,135.88,135.84,0.44950453]
[1768088312294,7.75238387,135.89,135.84,0.44950453]
[1768088312492,5.37336969,135.88,135.84,0.44950453]
[1768088312684,7.75238387,135.89,135.84,0.44950453]
[1768088312885,5.37336969,135.88,135.84,0.44950453]
[1768088313086,7.75238387,135.89,135.84,0.44950453]
[1768088313289,5.37336969,135.88,135.84,0.44950453]
[1768088313585,7.75238387,135.89,135.84,0.44950453]
[1768088313785,5.37307563,135.88,135.84,0.44950453]
[1768088313997,7.75238387,135.89,135.84,0.44950453]
[1768088314193,5.37307563,135.88,135.84,0.44950453]
[1768088314500,7.75238387,135.89,135.84,0.44950453]
[1768088314797,5.37281544,135.88,135.84,0.44950453]
[1768088314996,7.75238387,135.89,135.84,0.44950453]
[1768088315188,5.37281544,135.88,135.84,0.44950453]
[1768088315386,7.75238387,135.89,135.84,0.44950453]
[1768088315587,5.37258637,135.88,135.84,0.44950453]
[1768088315888,7.75238387,135.89,135.84,0.44950453]
[1768088316090,5.37258637,135.88,135.84,0.44950453]
[1768088316292,7.75238387,135.89,135.84,0.44950453]
[1768088316494,5.37238624,135.88,135.84,0.44950453]
[1768088316790,7.75238387,135.89,135.84,0.44950453]
[1768088316992,5.37238624,135.88,135.84,0.44950453]
[1768088317191,7.75238387,135.89,135.84,0.44950453]
[1768088317395,5.37227239,135.88,135.84,0.44950453]
[1768088317698,7.75238387,135.89,135.84,0.44950453]
[1768088317893,5.37221599,135.88,135.84,0.44950453]
[1768088318096,7.75238387,135.89,135.84,0.44950453]
[1768088318294,5.37221599,135.88,135.84,0.44950453]
[1768088318495,7.75238387,135.89,135.84,0.44950453]
[1768088318695,5.37207018,135.88,135.84,0.44950453]
[1768088318992,7.75238387,135.89,135.84,0.44950453]
[1768088319196,5.37207018,135.88,135.84,0.44950453]
[1768088319394,7.75238387,135.89,135.84,0.44950453]
[1768088319595,12.00404898,135.88,135.84,0.44950453]
[1768088319796,6.6321,135.88,135.84,0.44950453]
[1768088325108,6.6321,135.88,135.84,0.05661635]
[1768088325514,7.63025491,135.88,135.84,0.05661635]
[1768088344834,0.93247639,135.87,135.84,0.05661635]
[1768088370873,0.93247639,135.86,135.8,0.1370478]
[1768088372669,7.56617639,135.85,135.8,0.1370478]
[1768088374968,0.93247639,135.85,135.8,0.1370478]
[1768088377173,0.93247639,135.85,135.8,6.7729478]
[1768088396191,0.93247639,135.85,135.81,6.6355]
[1768088401498,0.93247639,135.85,135.8,6.7729478]
[1768088401797,0.05500427,135.84,135.82,0.05373982]
[1768088408510,0.05500427,135.84,135.8,6.7729478]
[1768088408511,0.98563233,135.84,135.8,6.6359]
[1768088424525,0.05500427,135.84,135.8,6.6359]
[1768088426718,0.05500427,135.84,135.8,6.79155111]
[1768088433832,0.05500427,135.84,135.8,0.15565111]
[1768088441429,0.05500427,135.84,135.8,6.79145111]
[1768088475875,0.05500427,135.84,135.8,6.6358]
[1768088476276,0.9525679,135.84,135.78,6.75271299]
[1768088477174,0.9525679,135.84,135.79,0.1151222]
[1768088477477,7.5865679,135.84,135.79,0.1151222]
[1768088488081,0.89756363,135.97,135.82,1.54367893]
[1768088488383,5.36895628,135.96,135.87,0.07974455]
[1768088488583,5.35583019,135.95,135.87,0.07974455]
[1768088488782,1.54367893,135.98,135.87,0.07974455]
[1768088488985,5.35583019,135.97,135.88,6.6318]
[1768088489180,5.35583019,135.96,135.88,6.6318]
[1768088489380,8.17117893,135.98,135.87,103.25314455]
[1768088489576,1.54367893,135.96,135.9,6.6309]
[1768088490386,0.94831662,135.94,135.9,6.6309]
[1768088500493,0.05075299,135.94,135.91,6.7587079]
[1768088500786,0.92467425,135.96,135.91,0.1283079]
[1768088500990,0.92467425,135.99,135.92,0.1283079]
[1768088501292,0.92467425,135.99,135.93,6.75972523]
[1768088501887,0.92467425,135.99,135.95,0.0542731]
[1768088532800,7.53587055,136.0,135.95,0.199419]
[1768088534011,15.49443908,136.01,135.96,0.14809077]
[1768088535602,15.49443908,136.01,135.97,6.6276]
[1768088541005,15.49443908,136.01,135.97,6.79424274]
[1768088546813,15.49443908,136.01,135.95,6.86505479]
[1768088546814,0.90967055,136.0,135.95,6.86505479]
[1768088554131,15.49443908,136.01,135.96,0.19801057]
[1768088556633,16.47290466,136.01,135.96,0.19801057]
[1768088557535,16.47290466,136.01,135.96,6.82611057]
[1768088561634,0.97846558,136.0,135.95,0.0542731]
[1768088564139,0.97846558,136.0,135.95,6.6827731]
[1768088566536,0.97846558,136.0,135.96,6.6281]
[1768088566739,0.97846558,136.0,135.95,0.28314966]
[1768088567644,0.97846558,136.0,135.97,6.6276]
[1768088572542,15.49443908,136.01,135.97,6.6276]
[1768088573045,16.49684657,136.01,135.97,6.6276]
[1768088583350,16.49684657,136.01,135.96,6.86735821]
[1768088586750,16.49684657,136.01,135.96,0.23925821]
[1768088587060,16.49684657,136.01,135.97,6.6276]
[1768088596856,15.49443908,136.01,135.98,0.35892052]
[1768088597064,0.96549668,136.03,135.96,0.35892052]
[1768088597563,0.96549668,136.03,135.98,6.6271]
[1768088597857,0.96549668,136.03,135.98,6.6751882]
[1768088616290,0.96549668,136.03,135.98,7.04055681]
[1768088627797,7.59019668,136.03,135.98,7.04055681]
[1768088628000,7.59019668,136.03,135.98,0.41345681]
[1768088644920,7.59019668,136.03,135.98,0.0480882]
[1768088647112,0.95648119,136.02,135.98,0.0480882]
[1768088700340,0.04971833,136.01,135.95,6.78282323]
[1768088700543,1.00812628,136.0,135.94,93.8982531]
[1768088700934,1.00812628,136.0,135.96,6.6281]
[1768088702533,1.00812628,136.0,135.95,6.78282323]
[1768088702743,1.00812628,136.0,135.94,86.92]
[1768088702934,1.00812628,136.0,135.93,6.78282323]
[1768088703439,0.93482458,135.98,135.92,0.21796739]
[1768088704643,0.93482458,135.98,135.92,6.84796739]
[1768088709348,0.93482458,135.98,135.93,6.6295]
[1768088714161,0.93482458,135.98,135.93,6.76213588]
[1768088717252,0.93482458,136.0,135.94,0.11301762]
[1768088718568,0.93482458,136.0,135.95,6.6284]
[1768088719761,0.93482458,136.0,135.94,0.11301762]
[1768088719762,0.93482458,136.0,135.96,6.6281]
[1768088723273,0.93482458,136.0,135.94,6.74171762]
[1768088744975,0.84941941,135.98,135.9,86.92]
[1768088745177,0.84941941,135.96,135.9,86.92]
[1768088745574,0.84941941,135.96,135.91,6.6301]
[1768088749092,0.84941941,135.98,135.91,6.6301]
[1768088757701,7.47661941,135.98,135.91,6.6301]
[1768088759403,7.47661941,135.98,135.92,6.6301]
[1768088761404,0.84941941,135.98,135.92,6.6301]
[1768088767917,0.84941941,135.98,135.93,6.6296]
[1768088788239,5.46215435,135.97,135.93,6.6296]
[1768088788437,0.84941941,135.98,135.93,6.6296]
[1768088788638,5.46215435,135.97,135.93,6.6296]
[1768088788938,0.84941941,135.98,135.93,6.6296]
[1768088789234,5.46215435,135.97,135.93,6.6296]
[1768088789436,0.84941941,135.98,135.93,6.6296]
[1768088789637,5.46485592,135.97,135.93,6.6296]
[1768088789838,0.84941941,135.98,135.93,6.6296]
[1768088790032,5.46485592,135.97,135.93,6.6296]
[1768088790229,0.84941941,135.98,135.93,6.6296]
[1768088790434,5.46476802,135.97,135.93,6.6296]
[1768088790635,0.84941941,135.98,135.93,6.6296]
[1768088790934,5.46476802,135.97,135.93,6.6296]
[1768088791131,0.84941941,135.98,135.93,6.6296]
[1768088791438,5.46472657,135.97,135.93,6.6296]
[1768088791632,0.84941941,135.98,135.93,6.6296]
[1768088791829,5.46472657,135.97,135.93,6.6296]
[1768088792028,0.84941941,135.98,135.93,6.6296]
[1768088792231,5.46472657,135.97,135.93,6.6296]
[1768088792432,0.84941941,135.98,135.93,6.6296]
[1768088792630,5.46469671,135.97,135.93,6.6296]
[1768088792922,0.84941941,135.98,135.93,6.6296]
[1768088793128,5.46469671,135.97,135.93,6.6296]
[1768088793428,0.84941941,135.98,135.93,6.6296]
[1768088793629,5.46467822,135.97,135.93,6.6296]
[1768088793924,0.84941941,135.98,135.93,6.6296]
[1768088794129,5.46467822,135.97,135.93,6.6296]
[1768088794329,0.84941941,135.98,135.93,6.6296]
[1768088794530,5.46462563,135.97,135.93,6.6296]
[1768088794733,0.84941941,135.98,135.93,6.6296]
[1768088794934,5.46462563,135.97,135.93,6.6296]
[1768088795143,0.84941941,135.98,135.93,6.6296]
[1768088795336,5.46457926,135.97,135.93,6.6296]
[1768088795536,0.84941941,135.98,135.93,6.6296]
[1768088795736,5.46457926,135.97,135.93,6.6296]
[1768088795937,0.84941941,135.98,135.93,6.6296]
[1768088796138,5.46457926,135.97,135.93,6.6296]
[1768088796437,0.84941941,135.98,135.93,6.6296]
[1768088796639,5.46453935,135.97,135.93,6.6296]
[1768088796841,0.84941941,135.98,135.93,6.6296]
[1768088797138,5.46453935,135.97,135.93,6.6296]
[1768088797339,0.84941941,135.98,135.93,6.6296]
[1768088797641,5.46450575,135.97,135.93,6.6296]
[1768088797839,0.84941941,135.98,135.93,6.6296]
[1768088798040,5.46450627,135.97,135.93,6.6296]
[1768088798341,0.84941941,135.98,135.93,6.6296]
[1768088798541,5.46452978,135.97,135.93,6.6296]
[1768088798841,0.84941941,135.98,135.93,6.6296]
[1768088799039,5.46452978,135.97,135.93,6.6296]
[1768088799236,0.84941941,135.98,135.93,6.6296]
[1768088799436,5.46456431,135.97,135.93,6.6296]
[1768088799642,0.84941941,135.98,135.93,6.6296]
[1768088799846,5.46456431,135.97,135.93,6.6296]
[1768088800040,0.84941941,135.98,135.93,6.6296]
[1768088800241,5.46456431,135.97,135.93,6.6296]
[1768088800544,0.84941941,135.98,135.93,6.6296]
[1768088800843,5.46461011,135.97,135.93,6.6296]
[1768088801045,0.84941941,135.98,135.93,6.6296]
[1768088801235,5.46461011,135.97,135.93,6.6296]
[1768088801431,0.84941941,135.98,135.93,6.6296]
[1768088801642,5.46485869,135.97,135.93,6.6296]
[1768088801842,0.84941941,135.98,135.93,6.6296]
[1768088802044,5.4646675,135.97,135.93,6.6296]
[1768088802245,0.84941941,135.98,135.93,6.6296]
[1768088802445,5.46473691,135.97,135.93,6.6296]
[1768088802639,0.84941941,135.98,135.93,6.6296]
[1768088802839,5.46473691,135.97,135.93,6.6296]
[1768088803038,0.84941941,135.98,135.93,6.6296]
[1768088803246,5.46473691,135.97,135.93,6.6296]
[1768088803444,0.84941941,135.98,135.93,6.6296]
[1768088803645,5.49827628,135.97,135.93,6.6296]
[1768088803849,0.84941941,135.98,135.93,6.6296]
[1768088804149,5.49808433,135.97,135.93,6.6296]
[1768088804349,0.84941941,135.98,135.93,6.6296]
[1768088804549,5.49812516,135.97,135.93,6.6296]
[1768088804751,0.84941941,135.98,135.93,6.6296]
[1768088804951,5.49812516,135.97,135.93,6.6296]
[1768088805146,0.84941941,135.98,135.93,6.6296]
[1768088805448,5.49834789,135.97,135.93,6.6296]
[1768088805647,0.84941941,135.98,135.93,6.6296]
[1768088805848,5.49834789,135.97,135.93,6.6296]
[1768088806047,0.84941941,135.98,135.93,6.6296]
[1768088806349,5.49834789,135.97,135.93,6.6296]
[1768088806548,0.84941941,135.98,135.93,6.6296]
[1768088806749,5.49846101,135.97,135.93,6.6296]
[1768088806951,0.84941941,135.98,135.93,6.6296]
[1768088807151,5.49846101,135.97,135.93,6.6296]
[1768088807449,0.84941941,135.98,135.93,6.6296]
[1768088807648,5.49858895,135.97,135.93,6.6296]
[1768088807856,0.84941941,135.98,135.93,6.6296]
[1768088808060,5.49858895,135.97,135.93,6.6296]
[1768088808352,0.84941941,135.98,135.93,6.6296]
[1768088808656,5.49873305,135.97,135.93,6.6296]
[1768088808956,0.84941941,135.98,135.93,6.6296]
[1768088809162,5.49873305,135.97,135.93,6.6296]
[1768088809354,0.84941941,135.98,135.93,6.6296]
[1768088809653,5.49889504,135.97,135.93,6.6296]
[1768088809848,0.84941941,135.98,135.93,6.6296]
[1768088810049,5.4988951,135.97,135.93,6.6296]
[1768088810349,0.84941941,135.98,135.93,6.6296]
[1768088810554,5.49907725,135.97,135.93,6.6296]
[1768088810752,0.84941941,135.98,135.93,6.6296]
[1768088810950,5.49907725,135.97,135.93,6.6296]
[1768088811150,0.84941941,135.98,135.93,6.6296]
[1768088811349,5.49928256,135.97,135.93,6.6296]
[1768088811545,0.84941941,135.98,135.93,6.6296]
[1768088811750,5.49928256,135.97,135.93,6.6296]
[1768088812048,0.84941941,135.98,135.93,6.6296]
[1768088812245,5.49928256,135.97,135.93,6.6296]
[1768088812446,0.84941941,135.98,135.93,6.6296]
[1768088812645,5.49951522,135.97,135.93,6.6296]
[1768088812850,0.84941941,135.98,135.93,6.6296]
[1768088813057,5.49951522,135.97,135.93,6.6296]
[1768088813358,0.84941941,135.98,135.93,6.6296]
[1768088813557,5.49977712,135.97,135.93,6.6296]
[1768088813756,0.84941941,135.98,135.93,6.6296]
[1768088813951,5.49977712,135.97,135.93,6.6296]
[1768088814151,0.84941941,135.98,135.93,6.6296]
[1768088814347,5.50008067,135.97,135.93,6.6296]
[1768088814552,0.84941941,135.98,135.93,6.6296]
[1768088814757,5.50008067,135.97,135.93,6.6296]
[1768088814959,0.84941941,135.98,135.93,6.6296]
[1768088815152,5.50008067,135.97,135.93,6.6296]
[1768088815356,0.84941941,135.98,135.93,6.6296]
[1768088815555,5.50044108,135.97,135.93,6.6296]
[1768088815756,0.84941941,135.98,135.93,6.6296]
[1768088815958,5.50044108,135.97,135.93,6.6296]
[1768088816156,0.84941941,135.98,135.93,6.6296]
[1768088816358,5.50088822,135.97,135.93,6.6296]
[1768088816665,0.84941941,135.98,135.93,6.6296]
[1768088816964,5.50050415,135.97,135.93,6.6296]
[1768088817170,0.84941941,135.98,135.93,6.6296]
[1768088817462,5.50150139,135.97,135.93,6.6296]
[1768088817761,0.84941941,135.98,135.93,6.6296]
[1768088817962,5.50150139,135.97,135.93,6.6296]
[1768088818162,0.84941941,135.98,135.93,6.6296]
[1768088818463,5.50171337,135.97,135.93,6.6296]
[1768088818667,0.84941941,135.98,135.93,6.6296]
[1768088818964,5.50171337,135.97,135.93,6.6296]
[1768088819159,0.84941941,135.98,135.93,6.6296]
[1768088819361,5.5019853,135.97,135.93,6.6296]
[1768088819563,0.84941941,135.98,135.93,6.6296]
[1768088819760,5.5019853,135.97,135.93,6.6296]
[1768088819961,0.84941941,135.98,135.93,6.6296]
[1768088820262,5.5019853,135.97,135.93,6.6296]
[1768088820460,5.5019853,135.96,135.93,6.6296]
[1768088820761,0.84941941,135.98,135.93,6.6296]
[1768088821058,5.5023972,135.97,135.93,6.6296]
[1768088821259,5.5023972,135.96,135.93,6.6296]
[1768088821458,0.84941941,135.98,135.93,6.6296]
[1768088821659,5.50239764,135.97,135.93,6.6296]
[1768088821863,5.50239764,135.96,135.93,6.6296]
[1768088822074,0.84941941,135.98,135.93,6.6296]
[1768088822368,5.50240351,135.97,135.93,6.6296]
[1768088822566,5.50240351,135.96,135.93,6.6296]
[1768088822865,0.84941941,135.98,135.93,6.6296]
[1768088823065,5.50239809,135.97,135.93,6.6296]
[1768088823365,5.50239809,135.96,135.93,6.6296]
[1768088823566,0.65035032,136.02,135.91,103.1404]
[1768088823767,0.65035032,136.02,135.92,103.133]
[1768088824072,0.65035032,136.04,135.98,6.6271]
[1768088826769,7.27465032,136.04,135.98,6.6271]
[1768088832276,0.65035032,136.04,135.98,6.6271]
[1768088845193,7.27465032,136.04,135.98,6.6271]
[1768088847697,7.27415032,136.05,135.98,6.6271]
[1768088860212,7.27415032,136.05,135.99,6.6266]
[1768088865012,0.65035032,136.05,136.0,6.6262]
[1768088881836,7.27415032,136.05,135.99,6.6266]
[1768088911255,6.6238,136.05,135.99,6.6266]
[1768088911452,7.2541336,136.05,135.99,6.6266]
[1768088944774,0.6303336,136.05,136.0,6.6261]
[1768088948386,0.04743425,136.04,136.0,6.6261]
[1768088970296,0.59603993,136.07,136.01,6.6256]
[1768088970494,0.59603993,136.07,136.01,6.67654983]
[1768088971598,7.21893993,136.07,136.01,6.67654983]
[1768088979302,7.1924537,136.06,136.01,0.05094983]
[1768088979700,7.1924537,136.06,136.0,6.6262]
[1768088980207,7.1924537,136.06,136.02,0.04652341]
[1768088987926,0.5691537,136.06,136.02,0.04652341]
[1768089030487,0.5691537,136.06,136.02,6.67172341]
[1768089046188,6.6224,136.08,136.02,6.67172341]
[1768089048195,0.52343923,136.07,136.02,6.67172341]
[1768089049290,0.52343923,136.06,136.02,0.04652341]
[1768089049496,0.52343923,136.06,136.0,6.6258]
[1768089050592,7.14713923,136.06,136.0,6.6258]
[1768089050795,0.52343923,136.05,136.0,6.6258]
[1768089058697,7.13398119,136.07,136.01,6.6255]
[1768089060797,0.51118119,136.07,136.02,6.6251]
[1768089064194,0.51118119,136.07,136.03,6.6246]
[1768089068801,7.13501523,136.09,136.03,6.6246]